Workbook

Sheet Rolling Budget and Forecast
A3: <COMPANY NAME>
A4: Rolling Budget and Business Forecast
A5: <Date>
A7: Line Item | B7: January | C7: February | D7: March | E7: Q1 | F7: April | G7: May | H7: June | I7: Q2 | J7: July | K7: August | L7: September | M7: Q3 | N7: October | O7: November | P7: December | Q7: Q4 | R7: Annual
A8: PROFIT AND LOSS
A9: Revenue
A10: Budget | B10: $65,000 | C10: $75,000 | D10: $85,000 | E10: $225,000 | F10: $75,000 | G10: $80,000 | H10: $90,000 | I10: $245,000 | J10: $95,000 | K10: $100,000 | L10: $105,000 | M10: $300,000 | N10: $120,000 | O10: $130,000 | P10: $145,000 | Q10: $395,000 | R10: $1,165,000
A11: Actual | B11: $60,000 | C11: $70,000 | D11: $88,000 | E11: $218,000 | F11: $95,000 | G11: $65,000 | H11: $88,000 | I11: $248,000 | J11: $95,000 | K11: $100,000 | L11: $105,000 | M11: $300,000 | N11: $120,000 | O11: $130,000 | P11: $145,000 | Q11: $395,000 | R11: $1,161,000
A12: Budget variance (Actual – Budget) | B12: =B11-B10 -> ($5,000) | C12: =C11-C10 -> ($5,000) | D12: $3,000 | E12: ($7,000) | F12: $20,000 | G12: ($15,000) | H12: ($2,000) | I12: $3,000 | J12: $0 | K12: $0 | L12: $0 | M12: $0 | N12: $0 | O12: $0 | P12: $0 | Q12: $0 | R12: ($4,000)
A13: Prior year | B13: $55,000 | C13: $60,000 | D13: $70,000 | E13: $185,000 | F13: $75,000 | G13: $80,000 | H13: $90,000 | I13: $245,000 | J13: $90,000 | K13: $95,000 | L13: $100,000 | M13: $285,000 | N13: $110,000 | O13: $120,000 | P13: $130,000 | Q13: $360,000 | R13: $1,075,000
A14: Prior year variance (Actual – Prior year) | B14: =B11-B13 -> $5,000 | C14: =C11-C13 -> $10,000 | D14: $18,000 | E14: $33,000 | F14: $20,000 | G14: ($15,000) | H14: ($2,000) | I14: $3,000 | J14: $5,000 | K14: $5,000 | L14: $5,000 | M14: $15,000 | N14: $10,000 | O14: $10,000 | P14: $15,000 | Q14: $35,000 | R14: $86,000
A15: Cost of Goods Sold
A16: Budget | B16: $50,000 | C16: $55,000 | D16: $65,000 | E16: $170,000 | F16: $55,000 | G16: $60,000 | H16: $70,000 | I16: $185,000 | J16: $70,000 | K16: $75,000 | L16: $80,000 | M16: $225,000 | N16: $90,000 | O16: $100,000 | P16: $125,000 | Q16: $315,000 | R16: $895,000
A17: Actual | B17: $47,500 | C17: $55,000 | D17: $63,000 | E17: $165,500 | F17: $45,000 | G17: $55,000 | H17: $63,000 | I17: $163,000 | J17: $70,000 | K17: $75,000 | L17: $80,000 | M17: $225,000 | N17: $90,000 | O17: $100,000 | P17: $125,000 | Q17: $315,000 | R17: $868,500
A18: Budget variance (Budget – Actual) | B18: =B16-B17 -> $2,500 | C18: =C16-C17 -> $0 | D18: $2,000 | E18: $4,500 | F18: $10,000 | G18: $5,000 | H18: $7,000 | I18: $22,000 | J18: $0 | K18: $0 | L18: $0 | M18: $0 | N18: $0 | O18: $0 | P18: $0 | Q18: $0 | R18: $26,500
A19: Prior year | B19: $45,000 | C19: $48,000 | D19: $54,000 | E19: $147,000 | F19: $49,000 | G19: $51,000 | H19: $56,000 | I19: $156,000 | J19: $70,000 | K19: $80,000 | L19: $85,000 | M19: $235,000 | N19: $95,000 | O19: $105,000 | P19: $115,000 | Q19: $315,000 | R19: $853,000
A20: Prior year variance (Prior year – Actual) | B20: =B19-B17 -> ($2,500) | C20: =C19-C17 -> ($7,000) | D20: ($9,000) | E20: ($18,500) | F20: $4,000 | G20: ($4,000) | H20: ($7,000) | I20: ($7,000) | J20: $0 | K20: $5,000 | L20: $5,000 | M20: $10,000 | N20: $5,000 | O20: $5,000 | P20: ($10,000) | Q20: $0 | R20: ($15,500)
A21: Sales and Marketing Costs
A22: Budget | B22: $8,000 | C22: $3,000 | D22: $4,000 | E22: $15,000 | F22: $6,000 | G22: $7,000 | H22: $8,000 | I22: $21,000 | J22: $7,500 | K22: $8,500 | L22: $9,000 | M22: $25,000 | N22: $8,000 | O22: $10,000 | P22: $6,500 | Q22: $24,500 | R22: $85,500
A23: Actual | B23: $10,000 | C23: $4,000 | D23: $3,000 | E23: $17,000 | F23: $5,000 | G23: $6,500 | H23: $7,500 | I23: $19,000 | J23: $7,500 | K23: $8,500 | L23: $9,000 | M23: $25,000 | N23: $8,000 | O23: $10,000 | P23: $6,500 | Q23: $24,500 | R23: $85,500
A24: Budget variance (Budget – Actual) | B24: =B22-B23 -> ($2,000) | C24: =C22-C23 -> ($1,000) | D24: $1,000 | E24: ($2,000) | F24: $1,000 | G24: $500 | H24: $500 | I24: $2,000 | J24: $0 | K24: $0 | L24: $0 | M24: $0 | N24: $0 | O24: $0 | P24: $0 | Q24: $0 | R24: $0
A25: Prior year | B25: $7,000 | C25: $6,000 | D25: $5,000 | E25: $18,000 | F25: $5,000 | G25: $6,000 | H25: $7,000 | I25: $18,000 | J25: $7,000 | K25: $8,000 | L25: $8,000 | M25: $23,000 | N25: $8,000 | O25: $9,000 | P25: $7,000 | Q25: $24,000 | R25: $83,000
A26: Prior year variance (Prior year – Actual) | B26: =B25-B23 -> ($3,000) | C26: =C25-C23 -> $2,000 | D26: $2,000 | E26: $1,000 | F26: $0 | G26: ($500) | H26: ($500) | I26: ($1,000) | J26: ($500) | K26: ($500) | L26: ($1,000) | M26: ($2,000) | N26: $0 | O26: ($1,000) | P26: $500 | Q26: ($500) | R26: ($2,500)
A27: Labor Expense
A28: Budget | B28: $35,000 | C28: $40,000 | D28: $40,000 | E28: $115,000 | F28: $40,000 | G28: $40,000 | H28: $45,000 | I28: $125,000 | J28: $45,000 | K28: $45,000 | L28: $50,000 | M28: $140,000 | N28: $50,000 | O28: $55,000 | P28: $55,000 | Q28: $160,000 | R28: $540,000
A29: Actual | B29: $40,000 | C29: $41,000 | D29: $42,000 | E29: $123,000 | F29: $42,000 | G29: $43,000 | H29: $45,000 | I29: $130,000 | J29: $45,000 | K29: $45,000 | L29: $50,000 | M29: $140,000 | N29: $50,000 | O29: $55,000 | P29: $55,000 | Q29: $160,000 | R29: $553,000
A30: Budget variance (Budget – Actual) | B30: =B28-B29 -> ($5,000) | C30: =C28-C29 -> ($1,000) | D30: ($2,000) | E30: ($8,000) | F30: ($2,000) | G30: ($3,000) | H30: $0 | I30: ($5,000) | J30: $0 | K30: $0 | L30: $0 | M30: $0 | N30: $0 | O30: $0 | P30: $0 | Q30: $0 | R30: ($13,000)
A31: Prior year | B31: $20,000 | C31: $25,000 | D31: $30,000 | E31: $75,000 | F31: $30,000 | G31: $31,000 | H31: $33,000 | I31: $94,000 | J31: $34,000 | K31: $35,000 | L31: $36,000 | M31: $105,000 | N31: $37,000 | O31: $38,000 | P31: $37,000 | Q31: $112,000 | R31: $386,000
A32: Prior year variance (Prior year – Actual) | B32: =B31-B29 -> ($20,000) | C32: =C31-C29 -> ($16,000) | D32: ($12,000) | E32: ($48,000) | F32: ($12,000) | G32: ($12,000) | H32: ($12,000) | I32: ($36,000) | J32: ($11,000) | K32: ($10,000) | L32: ($14,000) | M32: ($35,000) | N32: ($13,000) | O32: ($17,000) | P32: ($18,000) | Q32: ($48,000) | R32: ($167,000)
A33: General and Administrative
A34: Budget | B34: $10,000 | C34: $10,000 | D34: $11,000 | E34: $31,000 | F34: $11,000 | G34: $12,000 | H34: $15,000 | I34: $38,000 | J34: $14,000 | K34: $15,000 | L34: $16,000 | M34: $45,000 | N34: $15,000 | O34: $18,000 | P34: $15,000 | Q34: $48,000 | R34: $162,000
A35: Actual | B35: $9,000 | C35: $10,000 | D35: $12,000 | E35: $31,000 | F35: $15,000 | G35: $13,000 | H35: $14,000 | I35: $42,000 | J35: $14,000 | K35: $15,000 | L35: $16,000 | M35: $45,000 | N35: $15,000 | O35: $18,000 | P35: $15,000 | Q35: $48,000 | R35: $166,000
A36: Budget variance (Budget – Actual) | B36: =B34-B35 -> $1,000 | C36: =C34-C35 -> $0 | D36: ($1,000) | E36: $0 | F36: ($4,000) | G36: ($1,000) | H36: $1,000 | I36: ($4,000) | J36: $0 | K36: $0 | L36: $0 | M36: $0 | N36: $0 | O36: $0 | P36: $0 | Q36: $0 | R36: ($4,000)
A37: Prior year | B37: $5,000 | C37: $6,000 | D37: $7,000 | E37: $18,000 | F37: $8,000 | G37: $9,000 | H37: $10,000 | I37: $27,000 | J37: $10,000 | K37: $12,000 | L37: $13,000 | M37: $35,000 | N37: $13,000 | O37: $14,000 | P37: $14,000 | Q37: $41,000 | R37: $121,000
A38: Prior year variance (Prior year – Actual) | B38: =B37-B35 -> ($4,000) | C38: =C37-C35 -> ($4,000) | D38: ($5,000) | E38: ($13,000) | F38: ($7,000) | G38: ($4,000) | H38: ($4,000) | I38: ($15,000) | J38: ($4,000) | K38: ($3,000) | L38: ($3,000) | M38: ($10,000) | N38: ($2,000) | O38: ($4,000) | P38: ($1,000) | Q38: ($7,000) | R38: ($45,000)
A39: Operating Income
A40: Budget | B40: $5,000 | C40: $5,000 | D40: $5,000 | E40: $15,000 | F40: $10,000 | G40: $10,000 | H40: $10,000 | I40: $30,000 | J40: $12,500 | K40: $12,500 | L40: $12,500 | M40: $37,500 | N40: $15,000 | O40: $15,000 | P40: $15,000 | Q40: $45,000 | R40: $127,500
A41: Actual | B41: ($5,000) | C41: ($3,000) | D41: $2,000 | E41: ($6,000) | F41: $0 | G41: $5,000 | H41: $7,000 | I41: $12,000 | J41: $12,500 | K41: $12,500 | L41: $12,500 | M41: $37,500 | N41: $15,000 | O41: $15,000 | P41: $15,000 | Q41: $45,000 | R41: $88,500
A42: Budget variance (Actual – Budget) | B42: =B41-B40 -> ($10,000) | C42: =C41-C40 -> ($8,000) | D42: ($3,000) | E42: ($21,000) | F42: ($10,000) | G42: ($5,000) | H42: ($3,000) | I42: ($18,000) | J42: $0 | K42: $0 | L42: $0 | M42: $0 | N42: $0 | O42: $0 | P42: $0 | Q42: $0 | R42: ($39,000)
A43: Prior year | B43: ($5,000) | C43: ($25,000) | D43: ($27,000) | E43: ($57,000) | F43: ($15,000) | G43: ($15,000) | H43: ($15,000) | I43: ($45,000) | J43: ($33,000) | K43: ($25,000) | L43: ($25,000) | M43: ($83,000) | N43: ($30,000) | O43: ($20,000) | P43: ($20,000) | Q43: ($70,000) | R43: ($255,000)
A44: Prior year variance (Actual – Prior year) | B44: =B41-B43 -> $0 | C44: =C41-C43 -> $22,000 | D44: $29,000 | E44: $51,000 | F44: $15,000 | G44: $20,000 | H44: $22,000 | I44: $57,000 | J44: $45,500 | K44: $37,500 | L44: $37,500 | M44: $120,500 | N44: $45,000 | O44: $35,000 | P44: $35,000 | Q44: $115,000 | R44: $343,500
A45: BALANCE SHEET
A46: Cash
A47: Budget | B47: $45,000 | C47: $45,000 | D47: $40,000 | E47: $40,000 | F47: $40,000 | G47: $42,000 | H47: $45,000 | I47: $45,000 | J47: $48,000 | K47: $52,000 | L47: $55,000 | M47: $55,000 | N47: $60,000 | O47: $65,000 | P47: $70,000 | Q47: $70,000 | R47: $70,000
A48: Actual | B48: $43,000 | C48: $42,000 | D48: $41,000 | E48: $41,000 | F48: $38,000 | G48: $40,000 | H48: $41,000 | I48: $41,000 | J48: $48,000 | K48: $52,000 | L48: $55,000 | M48: $55,000 | N48: $60,000 | O48: $65,000 | P48: $70,000 | Q48: $70,000 | R48: $70,000
A49: Budget variance (Actual – Budget) | B49: =B48-B47 -> ($2,000) | C49: =C48-C47 -> ($3,000) | D49: $1,000 | E49: $1,000 | F49: ($2,000) | G49: ($2,000) | H49: ($4,000) | I49: ($4,000) | J49: $0 | K49: $0 | L49: $0 | M49: $0 | N49: $0 | O49: $0 | P49: $0 | Q49: $0 | R49: $0
A50: Prior year | B50: $125,000 | C50: $110,000 | D50: $95,000 | E50: $95,000 | F50: $85,000 | G50: $75,000 | H50: $65,000 | I50: $65,000 | J50: $60,000 | K50: $50,000 | L50: $40,000 | M50: $40,000 | N50: $35,000 | O50: $30,000 | P50: $25,000 | Q50: $25,000 | R50: $25,000
A51: Prior year variance (Actual – Prior year) | B51: =B48-B50 -> ($82,000) | C51: =C48-C50 -> ($68,000) | D51: ($54,000) | E51: ($54,000) | F51: ($47,000) | G51: ($35,000) | H51: ($24,000) | I51: ($24,000) | J51: ($12,000) | K51: $2,000 | L51: $15,000 | M51: $15,000 | N51: $25,000 | O51: $35,000 | P51: $45,000 | Q51: $45,000 | R51: $45,000
A52: Inventory
A53: Budget | B53: $100,000 | C53: $105,000 | D53: $110,000 | E53: $110,000 | F53: $115,000 | G53: $120,000 | H53: $125,000 | I53: $125,000 | J53: $125,000 | K53: $125,000 | L53: $120,000 | M53: $120,000 | N53: $115,000 | O53: $110,000 | P53: $100,000 | Q53: $100,000 | R53: $100,000
A54: Actual | B54: $95,000 | C54: $100,000 | D54: $105,000 | E54: $105,000 | F54: $105,000 | G54: $112,000 | H54: $118,000 | I54: $118,000 | J54: $125,000 | K54: $125,000 | L54: $120,000 | M54: $120,000 | N54: $115,000 | O54: $110,000 | P54: $100,000 | Q54: $100,000 | R54: $100,000
A55: Budget variance (Actual – Budget) | B55: =B54-B53 -> ($5,000) | C55: =C54-C53 -> ($5,000) | D55: ($5,000) | E55: ($5,000) | F55: ($10,000) | G55: ($8,000) | H55: ($7,000) | I55: ($7,000) | J55: $0 | K55: $0 | L55: $0 | M55: $0 | N55: $0 | O55: $0 | P55: $0 | Q55: $0 | R55: $0
A56: Prior year | B56: $80,000 | C56: $85,000 | D56: $90,000 | E56: $90,000 | F56: $90,000 | G56: $100,000 | H56: $110,000 | I56: $110,000 | J56: $115,000 | K56: $105,000 | L56: $110,000 | M56: $110,000 | N56: $105,000 | O56: $95,000 | P56: $90,000 | Q56: $90,000 | R56: $90,000
A57: Prior year variance (Actual – Prior year) | B57: =B54-B56 -> $15,000 | C57: =C54-C56 -> $15,000 | D57: $15,000 | E57: $15,000 | F57: $15,000 | G57: $12,000 | H57: $8,000 | I57: $8,000 | J57: $10,000 | K57: $20,000 | L57: $10,000 | M57: $10,000 | N57: $10,000 | O57: $15,000 | P57: $10,000 | Q57: $10,000 | R57: $10,000
A58: Accounts Receivable
A59: Budget | B59: $45,000 | C59: $48,000 | D59: $50,000 | E59: $50,000 | F59: $55,000 | G59: $55,000 | H59: $54,000 | I59: $54,000 | J59: $53,000 | K59: $52,000 | L59: $51,000 | M59: $51,000 | N59: $50,000 | O59: $50,000 | P59: $50,000 | Q59: $50,000 | R59: $50,000
A60: Actual | B60: $47,000 | C60: $48,000 | D60: $49,000 | E60: $49,000 | F60: $51,000 | G60: $53,000 | H60: $54,000 | I60: $54,000 | J60: $53,000 | K60: $52,000 | L60: $51,000 | M60: $51,000 | N60: $50,000 | O60: $50,000 | P60: $50,000 | Q60: $50,000 | R60: $50,000
A61: Budget variance (Actual – Budget) | B61: =B60-B59 -> $2,000 | C61: =C60-C59 -> $0 | D61: ($1,000) | E61: ($1,000) | F61: ($4,000) | G61: ($2,000) | H61: $0 | I61: $0 | J61: $0 | K61: $0 | L61: $0 | M61: $0 | N61: $0 | O61: $0 | P61: $0 | Q61: $0 | R61: $0
A62: Prior year | B62: $65,000 | C62: $63,000 | D62: $61,000 | E62: $61,000 | F62: $60,000 | G62: $58,000 | H62: $55,000 | I62: $55,000 | J62: $48,000 | K62: $45,000 | L62: $45,000 | M62: $45,000 | N62: $47,000 | O62: $43,000 | P62: $42,000 | Q62: $42,000 | R62: $42,000
A63: Prior year variance (Actual – Prior year) | B63: =B60-B62 -> ($18,000) | C63: =C60-C62 -> ($15,000) | D63: ($12,000) | E63: ($12,000) | F63: ($9,000) | G63: ($5,000) | H63: ($1,000) | I63: ($1,000) | J63: $5,000 | K63: $7,000 | L63: $6,000 | M63: $6,000 | N63: $3,000 | O63: $7,000 | P63: $8,000 | Q63: $8,000 | R63: $8,000
A64: Net Fixed Assets
A65: Budget | B65: $250,000 | C65: $245,000 | D65: $240,000 | E65: $240,000 | F65: $235,000 | G65: $230,000 | H65: $225,000 | I65: $225,000 | J65: $300,000 | K65: $295,000 | L65: $290,000 | M65: $290,000 | N65: $285,000 | O65: $280,000 | P65: $275,000 | Q65: $275,000 | R65: $275,000
A66: Actual | B66: $250,000 | C66: $245,000 | D66: $240,000 | E66: $240,000 | F66: $235,000 | G66: $230,000 | H66: $225,000 | I66: $225,000 | J66: $300,000 | K66: $295,000 | L66: $290,000 | M66: $290,000 | N66: $285,000 | O66: $280,000 | P66: $275,000 | Q66: $275,000 | R66: $275,000
A67: Budget variance (Actual – Budget) | B67: =B66-B65 -> $0 | C67: =C66-C65 -> $0 | D67: $0 | E67: $0 | F67: $0 | G67: $0 | H67: $0 | I67: $0 | J67: $0 | K67: $0 | L67: $0 | M67: $0 | N67: $0 | O67: $0 | P67: $0 | Q67: $0 | R67: $0
A68: Prior year | B68: $230,000 | C68: $230,000 | D68: $231,000 | E68: $231,000 | F68: $234,000 | G68: $235,000 | H68: $235,000 | I68: $235,000 | J68: $240,000 | K68: $240,000 | L68: $242,000 | M68: $242,000 | N68: $244,000 | O68: $245,000 | P68: $248,000 | Q68: $248,000 | R68: $248,000
A69: Prior year variance (Actual – Prior year) | B69: =B66-B68 -> $20,000 | C69: =C66-C68 -> $15,000 | D69: $9,000 | E69: $9,000 | F69: $1,000 | G69: ($5,000) | H69: ($10,000) | I69: ($10,000) | J69: $60,000 | K69: $55,000 | L69: $48,000 | M69: $48,000 | N69: $41,000 | O69: $35,000 | P69: $27,000 | Q69: $27,000 | R69: $27,000
A70: Accounts Payable
A71: Budget | B71: $25,000 | C71: $28,000 | D71: $32,000 | E71: $32,000 | F71: $34,000 | G71: $35,000 | H71: $36,000 | I71: $36,000 | J71: $35,000 | K71: $34,000 | L71: $33,000 | M71: $33,000 | N71: $32,000 | O71: $31,000 | P71: $30,000 | Q71: $30,000 | R71: $30,000
A72: Actual | B72: $26,000 | C72: $30,000 | D72: $34,000 | E72: $34,000 | F72: $35,000 | G72: $35,500 | H72: $36,500 | I72: $36,500 | J72: $35,000 | K72: $34,000 | L72: $33,000 | M72: $33,000 | N72: $32,000 | O72: $31,000 | P72: $30,000 | Q72: $30,000 | R72: $30,000
A73: Budget variance (Actual – Budget) | B73: =B72-B71 -> $1,000 | C73: =C72-C71 -> $2,000 | D73: $2,000 | E73: $2,000 | F73: $1,000 | G73: $500 | H73: $500 | I73: $500 | J73: $0 | K73: $0 | L73: $0 | M73: $0 | N73: $0 | O73: $0 | P73: $0 | Q73: $0 | R73: $0
A74: Prior year | B74: $18,000 | C74: $20,000 | D74: $24,000 | E74: $24,000 | F74: $25,000 | G74: $26,000 | H74: $26,000 | I74: $26,000 | J74: $27,000 | K74: $28,000 | L74: $27,000 | M74: $27,000 | N74: $28,000 | O74: $29,000 | P74: $28,000 | Q74: $28,000 | R74: $28,000
A75: Prior year variance (Actual – Prior year) | B75: =B72-B74 -> $8,000 | C75: =C72-C74 -> $10,000 | D75: $10,000 | E75: $10,000 | F75: $10,000 | G75: $9,500 | H75: $10,500 | I75: $10,500 | J75: $8,000 | K75: $6,000 | L75: $6,000 | M75: $6,000 | N75: $4,000 | O75: $2,000 | P75: $2,000 | Q75: $2,000 | R75: $2,000
A76: Long-Term Debt
A77: Budget | B77: $125,000 | C77: $48,000 | D77: $50,000 | E77: $50,000 | F77: $55,000 | G77: $55,000 | H77: $54,000 | I77: $54,000 | J77: $53,000 | K77: $52,000 | L77: $51,000 | M77: $51,000 | N77: $50,000 | O77: $50,000 | P77: $50,000 | Q77: $50,000 | R77: $50,000
A78: Actual | B78: $125,000 | C78: $48,000 | D78: $49,000 | E78: $49,000 | F78: $51,000 | G78: $53,000 | H78: $54,000 | I78: $54,000 | J78: $53,000 | K78: $52,000 | L78: $51,000 | M78: $51,000 | N78: $50,000 | O78: $50,000 | P78: $50,000 | Q78: $50,000 | R78: $50,000
A79: Budget variance (Actual – Budget) | B79: =B78-B77 -> $0 | C79: =C78-C77 -> $0 | D79: ($1,000) | E79: ($1,000) | F79: ($4,000) | G79: ($2,000) | H79: $0 | I79: $0 | J79: $0 | K79: $0 | L79: $0 | M79: $0 | N79: $0 | O79: $0 | P79: $0 | Q79: $0 | R79: $0
A80: Prior year | B80: $45,000 | C80: $45,000 | D80: $45,000 | E80: $45,000 | F80: $65,000 | G80: $65,000 | H80: $65,000 | I80: $65,000 | J80: $75,000 | K80: $75,000 | L80: $75,000 | M80: $75,000 | N80: $85,000 | O80: $85,000 | P80: $75,000 | Q80: $75,000 | R80: $75,000
A81: Prior year variance (Actual – Prior year) | B81: =B78-B80 -> $80,000 | C81: =C78-C80 -> $3,000 | D81: $4,000 | E81: $4,000 | F81: ($14,000) | G81: ($12,000) | H81: ($11,000) | I81: ($11,000) | J81: ($22,000) | K81: ($23,000) | L81: ($24,000) | M81: ($24,000) | N81: ($35,000) | O81: ($35,000) | P81: ($25,000) | Q81: ($25,000) | R81: ($25,000)
